bitfinex/quotes_ETHUSD_20241101
["timestamp","ask_amount","ask_price","bid_price","bid_amount"]
[1730472521155,3.90792,2558.9,2558.8,0.55]
[1730472521556,3.90771,2559.1,2558.7,0.01]
[1730472521861,3.90791,2559.0,2558.7,0.01]
[1730472522434,1.2766,2559.6,2559.2,0.55]
[1730472522640,0.75,2561.1,2559.1,3.90759]
[1730472522641,3.90633,2560.0,2559.4,4.45712]
[1730472522958,3.90667,2559.8,2559.4,0.55]
[1730472523343,3.9064,2560.0,2559.4,0.55]
[1730472523547,3.90629,2560.0,2559.4,0.55]
[1730472523790,3.90629,2560.0,2559.6,0.55]
[1730472523964,3.90647,2559.9,2559.6,0.55]
[1730472524274,3.90629,2560.0,2559.5,4.45699]
[1730472524484,3.9061,2560.1,2559.5,4.45692]
[1730472524638,3.9061,2560.1,2559.7,0.55]
[1730472524956,7.81232,2560.1,2559.7,0.55]
[1730472525279,3.90556,2560.5,2559.9,4.45639]
[1730472525569,3.90564,2560.4,2560.1,0.55]
[1730472525991,3.90556,2560.5,2560.0,4.45622]
[1730472526491,3.90556,2560.5,2560.0,0.55]
[1730472526688,3.9057,2560.4,2560.0,0.55]
[1730472526888,3.90556,2560.5,2560.0,0.55]
[1730472527199,3.90581,2560.3,2560.0,0.55]
[1730472527355,3.90581,2560.3,2559.9,3.9063]
[1730472527356,3.90581,2560.3,2559.9,0.55]
[1730472527888,3.90565,2560.4,2559.9,4.45635]
[1730472528085,3.9058,2560.3,2559.9,0.55]
[1730472529184,3.90564,2560.4,2559.9,4.45637]
[1730472529598,3.90542,2560.6,2560.1,0.55]
[1730472529792,3.90542,2560.6,2560.1,4.456]
[1730472530558,3.9055,2560.5,2560.1,0.55]
[1730472531883,3.90548,2560.5,2560.1,0.55]
[1730472532088,3.90568,2560.4,2560.1,0.55]
[1730472532396,3.90548,2560.5,2560.1,0.55]
[1730472532772,1.2325,2560.7,2560.0,0.55]
[1730472532974,3.90571,2560.4,2559.9,0.55]
[1730472533180,3.90571,2560.4,2559.9,4.45628]
[1730472533707,1.2325,2560.7,2559.9,0.55]
[1730472533874,3.90535,2560.6,2560.1,4.45601]
[1730472535002,3.90535,2560.6,2560.1,8.36202]
[1730472535363,1.2325,2560.7,2560.2,0.07811383]
[1730472535696,1.2325,2560.7,2559.7,3.55]
[1730472536005,1.2509,2561.6,2561.0,0.55]
[1730472536190,3.90396,2561.5,2561.1,3.90456]
[1730472536391,0.8005,2561.7,2561.0,0.55]
[1730472536570,3.9045,2561.2,2560.8,0.55]
[1730472536769,7.80902,2561.2,2560.8,0.55]
[1730472537194,3.9045,2561.2,2560.8,0.55]
[1730472537596,3.9045,2561.2,2560.7,3.90506]
[1730472537802,3.90405,2561.5,2560.8,4.45492]
[1730472538104,3.90405,2561.5,2561.1,0.55]
[1730472538268,0.8005,2561.7,2561.3,0.55]
[1730472538269,3.90373,2561.7,2561.3,0.55]
[1730472538671,3.90353,2561.8,2561.5,0.55]
[1730472538974,3.9039,2561.6,2561.3,0.55]
[1730472539292,3.90418,2561.4,2561.0,0.55]
[1730472539600,3.90389,2561.6,2561.0,0.55]
[1730472539802,3.90409,2561.5,2560.9,4.45486]
[1730472539976,6.90343,2561.9,2560.9,0.55]
[1730472540378,3.90405,2561.5,2561.1,0.55]
[1730472540901,3.90411,2561.4,2561.0,0.55]
[1730472541298,3.90436,2561.3,2560.9,0.55]
[1730472542009,4.294505,2561.5,2560.9,4.4548]
[1730472542218,0.390405,2561.5,2561.1,0.55]
[1730472542382,3.90375,2561.7,2561.3,0.55]
[1730472542714,3.90342,2561.9,2561.4,3.90407]
[1730472542867,3.90315,2562.1,2561.7,0.55]
[1730472543071,3.9026,2562.4,2561.9,3.90333]
[1730472543322,3.90244,2562.5,2562.0,4.5311183]
[1730472543510,3.90222,2562.7,2562.2,4.45281]
[1730472543672,0.7978,2562.9,2562.2,0.55]
[1730472543875,3.90228,2562.6,2562.2,0.55]
[1730472544177,3.90271,2562.4,2562.0,0.55]
[1730472544377,3.90271,2562.4,2561.3,3.65396607]
[1730472544378,3.90297,2562.2,2561.7,6.90356]
[1730472544601,3.90285,2562.3,2561.9,3.90334]
[1730472544806,3.90285,2562.3,2561.8,4.4535]
[1730472545030,4.292861,2562.4,2562.0,0.55]
[1730472545186,3.90254,2562.5,2562.0,0.55]
[1730472545187,3.90254,2562.5,2562.1,3.90304]
[1730472545392,3.90282,2562.3,2561.9,0.55]
[1730472545593,0.7978,2562.9,2561.9,4.45331]
[1730472545594,3.90254,2562.5,2561.9,4.45331]
[1730472546029,3.90267,2562.4,2561.9,4.45331]
[1730472546326,3.90276,2562.3,2561.9,4.45331]
[1730472546535,3.90276,2562.3,2561.8,0.55]
[1730472546693,3.90276,2562.3,2561.5,3.90388]
[1730472546694,1.220376,2562.3,2561.5,3.90388]
[1730472546893,3.90357,2561.8,2561.2,3.90441]
[1730472547127,3.90403,2561.5,2561.0,3.90465]
[1730472547330,4.220376,2562.3,2560.4,3.65396607]
[1730472547532,3.90312,2562.1,2561.6,3.90368]
[1730472547692,4.293016,2562.3,2561.4,3.90408]
[1730472547901,4.70412,2562.7,2562.1,3.90293]
[1730472548112,7.80447,2562.7,2562.1,3.90293]
[1730472548406,3.90281,2562.3,2561.9,0.55]
[1730472548741,7.80567,2562.3,2561.9,0.55]
[1730472549350,3.90276,2562.3,2561.9,0.55]
[1730472549643,7.80559,2562.3,2561.9,0.55]
[1730472549946,3.90276,2562.3,2561.9,0.55]
[1730472550112,3.90322,2562.0,2561.7,0.55]
[1730472550317,3.90308,2562.1,2561.7,0.55]
[1730472550505,7.80626,2562.1,2561.7,0.55]
[1730472550855,3.90284,2562.3,2561.9,0.55]
[1730472551043,3.90301,2562.2,2561.7,4.45358]
[1730472551243,3.90311,2562.1,2561.7,0.55]
[1730472551757,3.90345,2561.9,2561.4,7.80814]
[1730472552039,3.90345,2561.9,2561.3,3.90425]
[1730472552040,3.90358,2561.8,2561.3,3.90425]
[1730472552269,0.780658,2561.9,2560.4,3.65396607]
[1730472552448,3.90408,2561.5,2561.0,3.90463]
[1730472552843,3.90377,2561.7,2561.1,3.90449]
[1730472552844,3.90382,2561.6,2561.1,3.90449]
[1730472553360,3.90382,2561.6,2561.2,3.90441]
[1730472553553,3.90382,2561.6,2561.0,3.90463]
[1730472553855,0.7538,2562.4,2560.8,3.0]
[1730472554159,7.8069,2561.9,2561.4,4.45403]
[1730472554361,7.8069,2561.9,2561.4,0.55]
[1730472554362,3.90373,2561.7,2561.4,0.55]
[1730472554658,3.90373,2561.7,2561.3,0.55]
[1730472554961,3.90381,2561.6,2561.0,3.90459]
[1730472555131,3.90358,2561.8,2561.4,3.90409]
[1730472555473,3.90299,2562.2,2561.5,0.55]
[1730472555617,0.465624,2562.3,2561.7,3.90364]
[1730472555817,0.465624,2562.3,2561.5,0.55]
[1730472555818,3.90251,2562.5,2561.9,3.90335]
[1730472556024,3.9024,2562.6,2561.2,3.90427]
[1730472556025,3.90229,2562.6,2562.0,4.53123387]
[1730472556250,3.90245,2562.5,2562.0,4.53123387]
[1730472556453,3.90245,2562.5,2562.0,4.45312]
[1730472556677,0.7921,2563.0,2562.0,0.55]
[1730472556956,3.9029,2562.2,2561.7,3.90355]
[1730472557256,3.90275,2562.3,2561.8,4.4534]
[1730472557462,3.90275,2562.3,2562.0,0.55]
[1730472558338,3.90275,2562.3,2561.8,0.55]
[1730472558651,3.90275,2562.3,2561.2,3.90433]
[1730472558652,4.293095,2562.3,2561.6,0.55]
[1730472558854,3.90329,2562.0,2561.6,0.55]
[1730472559042,0.390275,2562.3,2561.1,3.0]
[1730472559255,3.90311,2562.1,2561.6,3.90373]
[1730472559450,4.293115,2562.3,2561.4,3.9041]
[1730472559657,3.90265,2562.4,2561.9,3.90324]
[1730472559826,3.90276,2562.3,2561.9,0.55]
[1730472560173,3.90349,2561.9,2561.4,4.4541]
[1730472560464,3.90349,2561.9,2561.4,8.35813]
[1730472560767,3.90349,2561.9,2561.4,7.80813]
[1730472561260,3.90312,2562.1,2561.6,7.80752]
[1730472561473,3.90253,2562.5,2561.8,3.90338]
[1730472561765,3.90266,2562.4,2561.9,3.98126736]
[1730472561975,3.90253,2562.5,2562.0,0.55]
[1730472562134,3.90253,2562.5,2562.2,0.55]
[1730472562475,7.80505,2562.5,2562.2,0.55]
[1730472562626,3.90252,2562.5,2562.2,0.55]
[1730472562827,3.9023,2562.6,2562.2,0.55]
[1730472563162,3.90225,2562.7,2562.2,0.62805375]
[1730472563426,3.90236,2562.6,2562.2,4.45288]
[1730472563580,3.90224,2562.7,2562.2,4.45288]
[1730472564238,0.390224,2562.7,2562.0,0.55]
[1730472564430,3.90287,2562.3,2561.8,0.55]
[1730472564843,3.9029,2562.2,2561.8,0.55]
[1730472565039,3.90281,2562.3,2561.8,4.45349]
[1730472565240,3.90289,2562.2,2561.8,0.55]
[1730472565458,3.90289,2562.2,2561.7,4.45359]
[1730472566376,3.90289,2562.2,2561.5,3.90387]
[1730472566377,3.90319,2562.1,2561.5,3.90387]
[1730472566692,3.90285,2562.3,2561.7,3.90354]
[1730472566850,0.8139,2562.4,2561.2,3.90436]
[1730472566851,3.90311,2562.1,2561.2,3.90436]
[1730472567060,3.90289,2562.2,2561.6,3.90379]
[1730472567259,3.90289,2562.2,2561.2,3.90436]
[1730472567260,3.90337,2561.9,2561.2,3.90428]
[1730472567581,3.90357,2561.8,2561.3,3.90417]
[1730472567746,3.90357,2561.8,2561.4,3.90409]
[1730472567947,3.90337,2561.9,2561.4,3.90409]
[1730472568247,6.90304,2562.1,2561.2,3.90433]
[1730472568471,3.90357,2561.8,2561.3,3.90416]
[1730472568674,0.7374719,2562.0,2560.9,3.9048]
[1730472568675,3.90383,2561.6,2560.9,3.9048]
[1730472568887,3.90414,2561.4,2560.9,3.90479]
[1730472569157,3.90433,2561.3,2560.8,3.90495]
[1730472569367,3.90433,2561.3,2560.8,3.90493]
[1730472569577,3.90433,2561.3,2560.7,4.30867635]
[1730472569784,3.90433,2561.3,2560.8,3.90502]
[1730472570486,3.90433,2561.3,2560.9,0.55]
[1730472570661,3.90435,2561.3,2560.9,0.55]
[1730472571874,3.90378,2561.7,2561.1,0.55]
[1730472572184,4.68386,2561.9,2561.3,0.55]
[1730472572185,0.7805,2561.9,2561.3,0.55]
[1730472572385,3.90373,2561.7,2561.4,0.55]
[1730472572991,3.90357,2561.8,2561.3,0.55]
[1730472573151,1.232879,2562.2,2561.5,0.55]
[1730472573669,7.80304,2563.1,2561.5,0.55]
[1730472573872,3.90306,2562.1,2561.7,0.55]
[1730472574075,3.90291,2562.2,2561.9,0.55]
[1730472574283,3.90307,2562.1,2561.7,4.45354]
[1730472574466,3.90291,2562.2,2561.7,4.45354]
[1730472574850,3.90272,2562.4,2561.8,0.07806065]
[1730472575092,3.90208,2562.8,2562.1,0.55]
[1730472575093,3.90213,2562.7,2562.1,0.55]
[1730472575313,0.473083,2562.7,2562.1,0.55]
[1730472575452,3.90247,2562.5,2562.1,0.55]
[1730472575807,3.90149,2563.2,2562.6,0.55]
[1730472576098,3.90146,2563.2,2562.8,0.55]
[1730472576297,3.90146,2563.2,2562.8,4.45197]
[1730472576597,3.9014,2563.2,2562.8,0.55]
[1730472576751,3.89962,2564.4,2562.8,0.55]
[1730472576752,0.7957,2564.2,2563.3,0.55]
[1730472576956,3.90017,2564.0,2563.3,0.55]
[1730472577193,3.90092,2563.5,2563.1,0.55]
[1730472577376,3.9007,2563.7,2563.1,4.45142]
[1730472577580,3.9003,2564.0,2563.5,0.55]
[1730472577755,3.9003,2564.0,2563.5,0.62800985]
[1730472578073,3.9004,2563.9,2563.5,0.55]
[1730472578259,3.90049,2563.8,2563.5,0.55]
[1730472578860,3.90063,2563.7,2563.3,0.55]
[1730472579371,3.90063,2563.7,2563.1,3.0]
[1730472579572,3.90063,2563.7,2563.2,4.45136]
[1730472579955,7.80086,2563.9,2563.3,3.90113]
[1730472580191,7.80086,2563.9,2563.4,0.55]
[1730472580500,3.90043,2563.9,2563.6,0.55]
[1730472580653,3.9001,2564.1,2563.5,3.90091]
[1730472580855,3.9,2564.1,2563.6,0.55]
[1730472581077,3.90037,2563.9,2563.4,8.35202]
[1730472581254,1.25,2564.2,2563.5,0.07800766]
[1730472581467,1.25,2564.2,2564.0,0.55]
[1730472581793,3.89956,2564.4,2564.0,0.55]
[1730472582801,3.89969,2564.3,2563.8,0.55]
[1730472582962,3.8999,2564.2,2563.8,0.55]
[1730472583162,5.14949,2564.5,2563.8,0.55]
[1730472583410,3.89959,2564.4,2564.0,0.55]
[1730472584116,3.89962,2564.4,2563.9,4.45028]
[1730472584284,3.89974,2564.3,2563.8,4.45044]
[1730472584607,1.25,2564.5,2562.7,5.93624182]
[1730472584608,5.14942,2564.5,2564.0,0.55]
[1730472584902,3.9,2564.1,2564.0,0.55]
[1730472585566,3.90063,2563.7,2563.1,3.9014]
[1730472585898,3.90041,2563.9,2563.3,3.90118]
[1730472586108,3.9001,2564.1,2563.4,3.97897153]
[1730472586307,3.9001,2564.1,2563.5,7.80161]
[1730472586598,7.79961,2564.3,2563.7,3.9006]
[1730472586805,7.79961,2564.3,2563.7,3.90052]
[1730472586806,3.89992,2564.2,2563.7,3.90052]
[1730472586964,3.89979,2564.3,2563.8,0.62800001]
[1730472587166,1.25,2564.5,2563.8,0.62800001]
[1730472587399,3.90008,2564.1,2563.6,0.55]
[1730472587606,3.90008,2564.1,2563.6,4.4507]
[1730472588176,3.90016,2564.0,2563.6,0.55]
[1730472588385,3.90008,2564.1,2563.6,4.45074]
[1730472588772,3.90008,2564.1,2563.8,0.55]
[1730472589982,3.90025,2564.0,2563.6,0.55]
[1730472590321,3.90017,2564.0,2563.6,0.55]
[1730472590619,3.90017,2564.0,2563.3,3.90112]
[1730472590620,3.9007,2563.7,2563.3,3.0]
[1730472591110,3.90046,2563.8,2563.3,3.90113]
[1730472591295,3.90046,2563.8,2563.4,0.07801198]
[1730472591816,3.90011,2564.1,2563.4,3.97907198]
[1730472591974,0.7994,2564.4,2563.7,0.55]
[1730472591975,3.8998,2564.3,2563.7,0.55]
[1730472592179,1.25,2564.5,2563.9,0.55]
[1730472592428,5.14916,2564.7,2564.2,3.89973]
[1730472592593,5.14916,2564.7,2564.3,0.62798413]
[1730472592913,1.25,2564.7,2564.3,4.52761413]
[1730472593218,1.25,2564.8,2564.4,3.89946]
[1730472593458,5.14879,2564.9,2564.5,0.55]
[1730472593581,3.89911,2564.7,2564.5,0.55]
[1730472593919,3.89911,2564.7,2564.3,0.55]
[1730472594081,3.8991,2564.7,2564.3,4.44967]
[1730472594718,3.8991,2564.7,2564.3,0.55]
[1730472595024,3.89894,2564.8,2564.3,4.44968]
[1730472595229,3.89893,2564.8,2564.3,0.55]
[1730472595435,3.89913,2564.7,2564.3,0.55]
[1730472595728,3.89894,2564.8,2564.3,4.44967]
[1730472595929,3.89911,2564.7,2564.3,0.55]
[1730472596082,5.14883,2564.9,2564.5,0.55]
[1730472596288,3.89894,2564.8,2564.5,0.55]
[1730472596787,3.89913,2564.7,2564.2,0.55]
[1730472596988,1.25,2564.9,2563.9,6.9002]
[1730472596989,3.89955,2564.4,2563.9,6.9002]
[1730472597201,5.14881,2564.9,2564.2,3.89983]
[1730472597202,3.89933,2564.6,2564.2,3.89983]
[1730472597401,3.89909,2564.7,2564.3,3.97766788]
[1730472597626,3.89902,2564.8,2564.3,3.97766788]
[1730472597942,3.89911,2564.7,2564.3,3.89968]
[1730472598235,1.25,2564.9,2564.5,3.89931]
[1730472598448,3.89901,2564.8,2564.3,4.44969]
[1730472598799,5.14879,2564.9,2564.3,0.55]
[1730472599049,5.14879,2564.9,2564.5,4.44939]
[1730472599214,1.25,2564.9,2564.5,4.44939]
[1730472599605,5.1488,2564.9,2564.5,0.55]
[1730472599941,3.89897,2564.8,2564.5,0.55]
[1730472600450,1.25,2564.9,2564.7,0.55]
[1730472600742,5.14889,2564.9,2564.7,0.55]
[1730472600907,5.14889,2564.9,2564.5,4.44935]
[1730472601106,1.25,2564.9,2564.5,4.44935]
[1730472601302,1.25,2564.9,2564.7,0.55]
[1730472601530,5.14887,2564.9,2564.7,0.55]
[1730472601754,1.25,2564.9,2564.7,0.55]
[1730472601936,1.25,2564.9,2564.6,0.55]
[1730472602117,1.25,2565.0,2564.9,0.55]
[1730472602315,1.25,2565.3,2565.1,0.55]
[1730472602808,1.25,2565.3,2565.1,4.44847]
[1730472603216,1.25,2565.3,2565.2,4.44833]
[1730472603426,1.25,2565.5,2565.4,0.55]
[1730472603803,1.25,2565.5,2565.2,3.89833]
[1730472603804,1.25,2565.5,2565.3,0.55]
[1730472604108,5.14789,2565.5,2565.1,3.55]
[1730472604308,5.14789,2565.5,2565.1,7.44846]
[1730472604609,1.25,2565.5,2565.4,4.44802]
[1730472605054,1.25,2565.5,2565.4,7.52596875]
[1730472605239,1.25,2565.5,2565.4,7.44802]
[1730472605767,5.14795,2565.5,2565.2,0.55]
[1730472605977,0.8114,2565.4,2563.8,3.65239851]
[1730472606261,3.89895,2564.8,2564.3,3.89957]
[1730472606731,3.89838,2565.2,2564.4,0.0443213]
[1730472606932,3.89939,2564.5,2564.4,0.0443213]
[1730472607135,4.71079,2564.5,2564.4,0.0443213]
[1730472607523,3.89982,2564.3,2563.7,3.90059]
[1730472607755,3.89991,2564.2,2563.7,3.90053]
[1730472608139,7.79961,2564.3,2563.8,3.90044]
[1730472608321,3.89937,2564.6,2564.0,3.9]
[1730472608547,3.89911,2564.7,2564.0,3.90003]
[1730472608745,3.89934,2564.6,2564.1,3.89994]
[1730472608950,3.89904,2564.8,2564.2,3.89978]
[1730472609168,3.89904,2564.8,2564.1,3.89994]
[1730472609169,3.89947,2564.5,2564.0,3.0]
[1730472609479,4.68052,2565.0,2563.2,3.65239851]
[1730472609684,4.68052,2565.0,2563.8,3.90044]
[1730472609685,3.89982,2564.3,2563.8,3.90044]
[1730472609978,3.89982,2564.3,2563.9,0.07799624]
[1730472610186,3.89982,2564.3,2563.3,4.30436253]
[1730472610187,3.89985,2564.2,2563.6,3.90076]
[1730472610388,3.89985,2564.2,2563.7,3.90061]
[1730472610572,3.89982,2564.3,2563.5,3.90079]
[1730472610573,3.9001,2564.1,2563.5,3.90079]
[1730472610778,3.90039,2563.9,2563.3,4.38227227]
[1730472610964,0.8187,2564.4,2563.4,3.90104]
[1730472610965,3.90021,2564.0,2563.4,3.90104]
[1730472611151,3.90009,2564.1,2563.6,3.90066]
[1730472611470,3.90009,2564.1,2563.7,0.07800145]
[1730472611672,3.90016,2564.0,2563.7,0.07800145]
[1730472611876,3.89969,2564.3,2563.5,3.0]
[1730472612087,3.90069,2563.7,2563.3,0.40318253]
[1730472612464,3.90033,2563.9,2563.3,4.30438253]
[1730472612816,0.471839,2564.3,2563.3,0.40318253]
[1730472612817,3.90022,2564.0,2563.3,0.40318253]
[1730472613105,3.90002,2564.1,2563.6,3.90065]
[1730472613408,3.90002,2564.1,2563.5,3.90077]
[1730472613564,7.79965,2564.3,2563.7,3.90048]
[1730472613770,3.89981,2564.3,2563.8,0.07799874]
[1730472614007,7.79964,2564.3,2563.8,0.07799874]
[1730472614165,3.8996,2564.4,2563.9,8.35047]
[1730472614369,3.8996,2564.4,2564.0,0.07799121]
[1730472614572,3.8996,2564.4,2563.9,4.4502]
[1730472614923,0.8207,2564.7,2563.6,3.90069]
[1730472615214,3.90039,2563.9,2563.4,4.45106]
[1730472615513,3.90011,2564.1,2563.6,4.45064]
[1730472615682,3.89981,2564.3,2563.7,3.97856094]
[1730472616032,3.89981,2564.3,2563.8,0.55]
[1730472616033,3.90001,2564.1,2563.8,0.55]
[1730472616302,3.90001,2564.1,2563.7,0.55]
[1730472616606,3.8995,2564.5,2563.7,0.55]
[1730472616793,3.8998,2564.3,2563.7,4.4506]
[1730472617104,3.8997,2564.3,2563.9,0.55]
[1730472617306,3.89989,2564.2,2563.9,0.55]
[1730472617507,3.89989,2564.2,2563.8,0.55]
[1730472617707,3.89949,2564.5,2563.8,0.55]
[1730472617911,3.89971,2564.3,2563.8,4.45031]
[1730472618073,3.89986,2564.2,2563.8,0.55]
[1730472618403,3.89971,2564.3,2563.8,0.55]
[1730472618609,3.90033,2563.9,2563.6,0.55]
[1730472618776,3.90016,2564.0,2563.6,0.55]
[1730472618977,3.90009,2564.1,2563.6,0.55]
[1730472619205,3.90009,2564.1,2563.3,7.30501837]
[1730472619206,3.90057,2563.8,2563.4,0.55]
[1730472619372,3.90057,2563.8,2563.3,4.30499837]
[1730472619571,3.90099,2563.5,2563.3,0.40386837]
[1730472619790,3.90099,2563.5,2563.0,5.12514571]
[1730472619791,3.90099,2563.5,2563.0,1.22348571]
[1730472620233,1.143799,2563.5,2563.0,1.22348571]
[1730472620532,7.65522,2563.1,2563.0,1.22348571]
[1730472620719,7.65598,2562.6,2562.5,1.67566844]
[1730472620900,7.65598,2562.6,2562.5,8.44e-06]
[1730472621227,8.811793,2562.6,2562.5,8.44e-06]
[1730472623517,3.90335,2561.9,2561.4,3.9041]
[1730472623736,3.90213,2562.7,2562.0,3.90319]
[1730472624031,3.90252,2562.5,2562.0,3.90319]
[1730472624328,3.90252,2562.5,2561.9,4.45332]
[1730472624495,3.90252,2562.5,2562.0,3.90319]
[1730472624696,3.90252,2562.5,2561.9,0.55]
[1730472624697,3.90262,2562.4,2561.9,0.55]
[1730472625303,4.69655,2562.9,2561.5,0.40404975]
[1730472625304,3.90301,2562.2,2561.5,0.40404975]
[1730472625506,3.90198,2562.8,2561.4,6.90397]
[1730472625507,3.90336,2561.9,2561.4,6.90397]
[1730472625838,3.9036,2561.8,2561.3,3.90423]
[1730472626055,3.90381,2561.6,2561.1,3.90448]
[1730472626346,3.90381,2561.6,2561.1,3.90456]
[1730472626514,4.67644,2562.0,2561.2,0.07807489]
[1730472626708,3.90362,2561.8,2561.2,3.98245489]
[1730472627045,3.90362,2561.8,2561.2,3.90438]
[1730472627209,3.90375,2561.7,2561.1,7.80904]
[1730472627426,0.7732,2562.0,2560.7,3.0]
[1730472627652,3.90338,2561.9,2561.4,3.90411]
[1730472628024,3.9035,2561.8,2561.3,4.45426]
[1730472628549,4.67654,2562.0,2561.4,3.90407]
[1730472628724,4.67654,2562.0,2561.3,0.55]
[1730472628725,0.7732,2562.0,2561.3,0.55]
[1730472628923,3.90375,2561.7,2561.3,0.55]
[1730472629119,0.7732,2562.0,2561.1,0.55]
[1730472629347,3.90344,2561.9,2561.3,3.90419]
[1730472629553,3.90344,2561.9,2561.4,0.55]
[1730472629858,3.90328,2562.0,2561.5,3.90395]
[1730472630320,3.90315,2562.1,2561.4,0.55]
[1730472630515,3.90312,2562.1,2561.2,0.55]
[1730472630752,3.90289,2562.2,2561.7,3.90357]
[1730472631081,3.90134,2563.3,2561.9,3.90324]
[1730472631082,3.90249,2562.5,2561.9,3.90324]
[1730472631259,0.7872,2562.7,2562.0,0.62805276]
[1730472631420,3.90221,2562.7,2562.2,0.55]
[1730472631741,3.90202,2562.8,2562.2,0.55]
[1730472631742,3.9023,2562.6,2562.2,0.55]
[1730472631916,3.90267,2562.4,2561.9,3.90334]
[1730472632115,3.90267,2562.4,2562.0,0.06947426]
[1730472632350,3.90231,2562.6,2562.0,3.97259426]
[1730472632558,3.90231,2562.6,2562.1,3.90294]
[1730472632764,3.90231,2562.6,2562.2,0.14685592]
[1730472633059,3.90244,2562.5,2562.2,0.06880709]
[1730472633354,3.90244,2562.5,2562.0,0.55]
[1730472633545,0.7872,2563.0,2562.1,0.06891301]
[1730472633746,3.902,2562.8,2562.1,4.04991363]
[1730472634068,3.90213,2562.7,2562.2,3.90288]
[1730472634552,3.902,2562.8,2562.3,4.0494017]
[1730472634759,3.902,2562.8,2562.3,3.97135117]
[1730472634963,7.80408,2562.8,2562.3,3.97135117]
[1730472635257,7.80408,2562.8,2562.3,0.06870117]
[1730472635460,3.90259,2562.4,2562.3,0.06870117]
[1730472635622,3.90314,2562.1,2561.6,3.90371]
[1730472635965,3.9029,2562.2,2561.7,3.9729568]
[1730472636137,3.90282,2562.3,2561.8,3.98155003]
[1730472636338,4.70331,2562.4,2561.9,3.97235489]
[1730472636569,7.80504,2562.5,2561.9,4.05041065]
[1730472636750,3.90229,2562.6,2561.9,4.05042065]
[1730472636955,3.90223,2562.7,2562.2,0.55]
[1730472637267,0.7886,2563.1,2562.3,0.06870117]
[1730472637474,3.9017,2563.0,2562.5,3.90239]
[1730472637642,4.69018,2563.1,2562.6,3.90227]
[1730472637837,0.469018,2563.0,2562.6,3.97056733]
[1730472638038,4.370798,2563.0,2562.6,0.06829733]
[1730472638439,4.370798,2563.0,2562.5,3.90236]
[1730472638638,3.90187,2562.9,2562.7,0.06819144]
[1730472638842,4.370798,2563.0,2559.4,2.7346]
[1730472638843,7.68723,2562.7,2562.6,0.06829733]
[1730472639044,3.90313,2562.1,2561.4,3.90405]
[1730472639355,7.8068,2561.9,2561.4,3.90405]
[1730472639674,3.90335,2561.9,2561.4,3.90405]
[1730472640059,3.90313,2562.1,2561.5,3.90387]
[1730472640366,0.8214,2561.9,2561.2,3.9043]
[1730472640585,0.8214,2561.9,2561.4,3.90411]
[1730472640736,4.72484,2561.9,2561.4,3.90411]
[1730472641140,0.8214,2561.9,2561.5,3.90395]
[1730472641346,0.8214,2561.9,2561.4,3.90402]
[1730472641650,0.8214,2561.9,2561.2,0.40411725]
[1730472641651,5.197231,2561.9,2561.3,3.90426]
[1730472642171,5.197231,2561.9,2561.4,3.90407]
[1730472642373,1.293871,2561.9,2561.2,0.40412415]
[1730472642596,3.90328,2562.0,2561.4,3.90411]
[1730472642878,3.90344,2561.9,2561.4,3.90409]
[1730472643250,3.90311,2562.1,2561.4,3.90409]
[1730472643438,3.90342,2561.9,2561.4,3.90409]
[1730472643640,3.90354,2561.8,2561.2,4.30840951]
[1730472643862,3.90354,2561.8,2561.2,3.90431]
[1730472644185,3.90354,2561.8,2561.3,3.90415]
[1730472645071,3.9032,2562.0,2561.5,3.90394]
[1730472645372,3.90365,2561.8,2561.2,4.30850715]
[1730472645584,3.90365,2561.8,2561.3,3.90426]
[1730472646174,0.39032,2562.0,2561.2,3.9043]
[1730472646337,3.90305,2562.1,2561.2,3.9043]
[1730472646536,3.90394,2561.6,2561.1,3.90451]
[1730472646783,4.68686,2561.7,2561.2,3.9044]
[1730472646938,8.59062,2561.7,2561.1,3.90451]
[1730472647142,0.7832,2561.7,2561.2,0.40410694]
[1730472647343,0.7832,2561.7,2561.3,3.90426]
[1730472647577,6.90279,2562.3,2561.3,3.90426]
[1730472647578,0.7533,2562.0,2561.3,3.90426]
[1730472647744,8.122196,2562.0,2561.4,3.90404]
[1730472648076,3.90338,2561.9,2561.4,3.90404]
[1730472648451,8.122196,2562.0,2561.4,3.90402]
[1730472648655,3.90343,2561.9,2561.4,3.90402]
[1730472648852,5.122196,2562.0,2561.4,3.904]
[1730472649174,0.7533,2562.0,2561.5,3.90383]
[1730472649376,0.7533,2562.0,2561.2,3.90429]
[1730472649582,4.65655,2562.0,2561.3,0.07807677]
[1730472649749,4.65655,2562.0,2561.5,3.90382]
[1730472649955,4.65655,2562.0,2561.5,7.80765]
[1730472650390,0.7533,2562.0,2561.6,3.90373]
[1730472650556,0.7533,2562.0,2561.7,3.96895477]
[1730472650755,0.7533,2562.0,2561.7,0.06531477]
[1730472651385,4.65656,2562.0,2561.5,3.90394]
[1730472651676,3.90357,2561.8,2561.3,4.3082838]
[1730472651881,3.90357,2561.8,2561.6,0.06540528]
[1730472652048,3.90349,2561.9,2561.4,3.90409]